{"text_format":"1","workbook":"xlsx","n_sheets":2,"sheets":["Adressen","Rg_Eingang_Tag"],"not_rendered":{"charts":0,"images":0,"macros":1,"external_links":1,"defined_names":2,"comments":0,"pivot_tables":0},"unopened":[],"bounds":{"document_bytes":16777216,"sheet_cells":100000,"rows_first":2000,"rows_last":500,"rows_between":2000,"halvings":0,"cell_chars":16384,"cell_head_chars":4096},"cells_cut":0,"cells_raw":0,"read":"whole","date_system":"1900"}

{"sheet":"Adressen","index":0,"n_rows":335,"n_cols":19,"rows_kept":335,"cut":false,"hidden":false,"merged":[]}
[null,null,null,null,null,null,null,null,null,null,null,null,null,null,null,null,null,"Ma=",{"$f":"COUNTIF(P2:P335,\"Ma\")","v":293}]
[null,null,null,null,null,null,null,null,null,null,null,null,null,"Datum",null,"Fa",null,"Pak =",{"$f":"COUNTIF(P4:P335,\"Pak\")","v":14}]
[null,null,null,null,null,null,null,null,null,null,null,null,null,"2026-01-05",null,"Ma",null,"slk =",{"$f":"COUNTIF(P3:P335,\"slk\")","v":26}]
[null,null,null,null,null,null,null,null,null,null,null,null,null,"2026-01-05",null,"Ma",null,null,{"$f":"SUM(S1:S3)","v":333}]
[null,null,null,null,null,null,null,null,null,null,null,null,null,"2026-01-05",null,"Ma"]
[null,null,null,null,null,null,null,null,null,null,null,null,null,"2026-01-06",null,"Ma"]
[null,null,null,null,null,null,null,null,null,null,null,null,null,"2026-01-06",null,"Ma"]
[null,null,null,null,null,null,null,null,null,null,null,null,null,"2026-01-06",null,"Ma"]
[null,null,null,null,null,null,null,null,null,null,null,null,null,"2026-01-06",null,"Ma"]
[null,null,null,null,null,null,null,null,null,null,null,null,null,"2026-01-06",null,"Ma"]
[null,null,null,null,null,null,null,null,null,null,null,null,null,"2026-01-06",null,"Ma"]
[null,null,null,null,null,null,null,null,null,null,null,null,null,"2026-01-06",null,"Ma"]
[null,null,null,null,null,null,null,null,null,null,null,null,null,"2026-01-06",null,"Ma"]
[null,null,null,null,null,null,null,null,null,null,null,null,null,"2026-01-06",null,"Ma"]
[null,null,null,null,null,null,null,null,null,null,null,null,null,"2026-01-06",null,"Ma"]
[null,null,null,null,null,null,null,null,null,null,null,null,null,"2026-01-06",null,"Ma"]
[null,null,null,null,null,null,null,null,null,null,null,null,null,"2026-01-06",null,"Ma"]
[null,null,null,null,null,null,null,null,null,null,null,null,null,"2026-01-06",null,"Ma"]
[null,null,null,null,null,null,null,null,null,null,null,null,null,"2026-01-06",null,"Ma"]
[null,null,null,null,null,null,null,null,null,null,null,null,null,"2026-01-06",null,"Ma"]
[null,null,null,null,null,null,null,null,null,null,null,null,null,"2026-01-06",null,"Ma"]
[null,null,null,null,null,null,null,null,null,null,null,null,null,"2026-01-06",null,"slk"]
[null,null,null,null,null,null,null,null,null,null,null,null,null,"2026-01-06",null,"slk"]
[null,null,null,null,null,null,null,null,null,null,null,null,null,"2026-01-07",null,"Ma"]
[null,null,null,null,null,null,null,null,null,null,null,null,null,"2026-01-07",null,"Ma"]
[null,null,null,null,null,null,null,null,null,null,null,null,null,"2026-01-07",null,"Ma"]
[null,null,null,null,null,null,null,null,null,null,null,null,null,"2026-01-07",null,"Ma"]
[null,null,null,null,null,null,null,null,null,null,null,null,null,"2026-01-07",null,"Ma"]
[null,null,null,null,null,null,null,null,null,null,null,null,null,"2026-01-07",null,"Ma"]
[null,null,null,null,null,null,null,null,null,null,null,null,null,"2026-01-07",null,"Ma"]
[null,null,null,null,null,null,null,null,null,null,null,null,null,"2026-01-07",null,"Ma"]
[null,null,null,null,null,null,null,null,null,null,null,null,null,"2026-01-07",null,"Ma"]
[null,null,null,null,null,null,null,null,null,null,null,null,null,"2026-01-07",null,"Ma"]
[null,null,null,null,null,null,null,null,null,null,null,null,null,"2026-01-07",null,"Ma"]
[null,null,null,null,null,null,null,null,null,null,null,null,null,"2026-01-07",null,"Pak"]
[null,null,null,null,null,null,null,null,null,null,null,null,null,"2026-01-07",null,"Pak"]
[null,null,null,null,null,null,null,null,null,null,null,null,null,"2026-01-07",null,"Pak"]
[null,null,null,null,null,null,null,null,null,null,null,null,null,"2026-01-07",null,"Pak"]
[null,null,null,null,null,null,null,null,null,null,null,null,null,"2026-01-08",null,"Pak"]
[null,null,null,null,null,null,null,null,null,null,null,null,null,"2026-01-08",null,"Pak"]
[null,null,null,null,null,null,null,null,null,null,null,null,null,"2026-01-08",null,"Pak"]
[null,null,null,null,null,null,null,null,null,null,null,null,null,"2026-01-08",null,"Pak"]
[null,null,null,null,null,null,null,null,null,null,null,null,null,"2026-01-08",null,"Pak"]
[null,null,null,null,null,null,null,null,null,null,null,null,null,"2026-01-08",null,"Pak"]
[null,null,null,null,null,null,null,null,null,null,null,null,null,"2026-01-12",null,"Pak"]
[null,null,null,null,null,null,null,null,null,null,null,null,null,"2026-01-12",null,"Pak"]
[null,null,null,null,null,null,null,null,null,null,null,null,null,"2026-01-12",null,"Pak"]
[null,null,null,null,null,null,null,null,null,null,null,null,null,"2026-01-12",null,"Pak"]
[null,null,null,null,null,null,null,null,null,null,null,null,null,"2026-01-12",null,"Ma"]
[null,null,null,null,null,null,null,null,null,null,null,null,null,"2026-01-13",null,"Ma"]
[null,null,null,null,null,null,null,null,null,null,null,null,null,"2026-01-13",null,"Ma"]
[null,null,null,null,null,null,null,null,null,null,null,null,null,"2026-01-13",null,"Ma"]
[null,null,null,null,null,null,null,null,null,null,null,null,null,"2026-01-13",null,"Ma"]
[null,null,null,null,null,null,null,null,null,null,null,null,null,"2026-01-13",null,"Ma"]
[null,null,null,null,null,null,null,null,null,null,null,null,null,"2026-01-13",null,"Ma"]
[null,null,null,null,null,null,null,null,null,null,null,null,null,"2026-01-13",null,"Ma"]
[null,null,null,null,null,null,null,null,null,null,null,null,null,"2026-01-13",null,"Ma"]
[null,null,null,null,null,null,null,null,null,null,null,null,null,"2026-01-13",null,"Ma"]
[null,null,null,null,null,null,null,null,null,null,null,null,null,"2026-01-13",null,"Ma"]
[null,null,null,null,null,null,null,null,null,null,null,null,null,"2026-01-13",null,"Ma"]
[null,null,null,null,null,null,null,null,null,null,null,null,null,"2026-01-13",null,"Ma"]
[null,null,null,null,null,null,null,null,null,null,null,null,null,"2026-01-13",null,"Ma"]
[null,null,null,null,null,null,null,null,null,null,null,null,null,"2026-01-13",null,"Ma"]
[null,null,null,null,null,null,null,null,null,null,null,null,null,"2026-01-13",null,"Ma"]
[null,null,null,null,null,null,null,null,null,null,null,null,null,"2026-01-13",null,"Ma"]
[null,null,null,null,null,null,null,null,null,null,null,null,null,"2026-01-13",null,"Ma"]
[null,null,null,null,null,null,null,null,null,null,null,null,null,"2026-01-14",null,"Ma"]
[null,null,null,null,null,null,null,null,null,null,null,null,null,"2026-01-14",null,"Ma"]
[null,null,null,null,null,null,null,null,null,null,null,null,null,"2026-01-16",null,"Ma"]
[null,null,null,null,null,null,null,null,null,null,null,null,null,"2026-01-16",null,"Ma"]
[null,null,null,null,null,null,null,null,null,null,null,null,null,"2026-01-16",null,"Ma"]
[null,null,null,null,null,null,null,null,null,null,null,null,null,"2026-01-16",null,"Ma"]
[null,null,null,null,null,null,null,null,null,null,null,null,null,"2026-01-16",null,"Ma"]
[null,null,null,null,null,null,null,null,null,null,null,null,null,"2026-01-16",null,"Ma"]
[null,null,null,null,null,null,null,null,null,null,null,null,null,"2026-01-16",null,"Ma"]
[null,null,null,null,null,null,null,null,null,null,null,null,null,"2026-01-19",null,"Ma"]
[null,null,null,null,null,null,null,null,null,null,null,null,null,"2026-01-19",null,"Ma"]
[null,null,null,null,null,null,null,null,null,null,null,null,null,"2026-01-19",null,"Ma"]
[null,null,null,null,null,null,null,null,null,null,null,null,null,"2026-01-19",null,"Ma"]
[null,null,null,null,null,null,null,null,null,null,null,null,null,"2026-01-20",null,"Ma"]
[null,null,null,null,null,null,null,null,null,null,null,null,null,"2026-01-20",null,"Ma"]
[null,null,null,null,null,null,null,null,null,null,null,null,null,"2026-01-20",null,"Ma"]
[null,null,null,null,null,null,null,null,null,null,null,null,null,"2026-01-20",null,"Ma"]
[null,null,null,null,null,null,null,null,null,null,null,null,null,"2026-01-20",null,"Ma"]
[null,null,null,null,null,null,null,null,null,null,null,null,null,"2026-01-20",null,"Ma"]
[null,null,null,null,null,null,null,null,null,null,null,null,null,"2026-01-20",null,"Ma"]
[null,null,null,null,null,null,null,null,null,null,null,null,null,"2026-01-20",null,"Ma"]
[null,null,null,null,null,null,null,null,null,null,null,null,null,"2026-01-21",null,"Ma"]
[null,null,null,null,null,null,null,null,null,null,null,null,null,"2026-01-21",null,"Ma"]
[null,null,null,null,null,null,null,null,null,null,null,null,null,"2026-01-21",null,"Ma"]
[null,null,null,null,null,null,null,null,null,null,null,null,null,"2026-01-21",null,"Ma"]
[null,null,null,null,null,null,null,null,null,null,null,null,null,"2026-01-21",null,"Ma"]
[null,null,null,null,null,null,null,null,null,null,null,null,null,"2026-01-21",null,"Ma"]
[null,null,null,null,null,null,null,null,null,null,null,null,null,"2026-01-21",null,"Ma"]
[null,null,null,null,null,null,null,null,null,null,null,null,null,"2026-01-21",null,"Ma"]
[null,null,null,null,null,null,null,null,null,null,null,null,null,"2026-01-21",null,"slk"]
[null,null,null,null,null,null,null,null,null,null,null,null,null,"2026-01-21",null,"slk"]
[null,null,null,null,null,null,null,null,null,null,null,null,null,"2026-01-21",null,"slk"]
[null,null,null,null,null,null,null,null,null,null,null,null,null,"2026-01-21",null,"slk"]
[null,null,null,null,null,null,null,null,null,null,null,null,null,"2026-01-21",null,"slk"]
[null,null,null,null,null,null,null,null,null,null,null,null,null,"2026-01-22",null,"Ma"]
[null,null,null,null,null,null,null,null,null,null,null,null,null,"2026-01-22",null,"Ma"]
[null,null,null,null,null,null,null,null,null,null,null,null,null,"2026-01-22",null,"Ma"]
[null,null,null,null,null,null,null,null,null,null,null,null,null,"2026-01-22",null,"Ma"]
[null,null,null,null,null,null,null,null,null,null,null,null,null,"2026-01-22",null,"Ma"]
[null,null,null,null,null,null,null,null,null,null,null,null,null,"2026-01-23",null,"Ma"]
[null,null,null,null,null,null,null,null,null,null,null,null,null,"2026-01-23",null,"Ma"]
[null,null,null,null,null,null,null,null,null,null,null,null,null,"2026-01-23",null,"Ma"]
[null,null,null,null,null,null,null,null,null,null,null,null,null,"2026-01-23",null,"Ma"]
[null,null,null,null,null,null,null,null,null,null,null,null,null,"2026-01-23",null,"Ma"]
[null,null,null,null,null,null,null,null,null,null,null,null,null,"2026-01-23",null,"Ma"]
[null,null,null,null,null,null,null,null,null,null,null,null,null,"2026-01-23",null,"Ma"]
[null,null,null,null,null,null,null,null,null,null,null,null,null,"2026-01-23",null,"Ma"]
[null,null,null,null,null,null,null,null,null,null,null,null,null,"2026-01-23",null,"Ma"]
[null,null,null,null,null,null,null,null,null,null,null,null,null,"2026-01-23",null,"Ma"]
[null,null,null,null,null,null,null,null,null,null,null,null,null,"2026-01-23",null,"Ma"]
[null,null,null,null,null,null,null,null,null,null,null,null,null,"2026-01-23",null,"Ma"]
[null,null,null,null,null,null,null,null,null,null,null,null,null,"2026-01-26",null,"Ma"]
[null,null,null,null,null,null,null,null,null,null,null,null,null,"2026-01-26",null,"Ma"]
[null,null,null,null,null,null,null,null,null,null,null,null,null,"2026-01-26",null,"Ma"]
[null,null,null,null,null,null,null,null,null,null,null,null,null,"2026-01-27",null,"Ma"]
[null,null,null,null,null,null,null,null,null,null,null,null,null,"2026-01-27",null,"Ma"]
[null,null,null,null,null,null,null,null,null,null,null,null,null,"2026-01-27",null,"Ma"]
[null,null,null,null,null,null,null,null,null,null,null,null,null,"2026-01-27",null,"Ma"]
[null,null,null,null,null,null,null,null,null,null,null,null,null,"2026-01-27",null,"Ma"]
[null,null,null,null,null,null,null,null,null,null,null,null,null,"2026-01-27",null,"Ma"]
[null,null,null,null,null,null,null,null,null,null,null,null,null,"2026-01-28",null,"Ma"]
[null,null,null,null,null,null,null,null,null,null,null,null,null,"2026-01-28",null,"Ma"]
[null,null,null,null,null,null,null,null,null,null,null,null,null,"2026-01-28",null,"Ma"]
[null,null,null,null,null,null,null,null,null,null,null,null,null,"2026-01-28",null,"Ma"]
[null,null,null,null,null,null,null,null,null,null,null,null,null,"2026-01-28",null,"Ma"]
[null,null,null,null,null,null,null,null,null,null,null,null,null,"2026-01-28",null,"Ma"]
[null,null,null,null,null,null,null,null,null,null,null,null,null,"2026-01-28",null,"Ma"]
[null,null,null,null,null,null,null,null,null,null,null,null,null,"2026-01-28",null,"Ma"]
[null,null,null,null,null,null,null,null,null,null,null,null,null,"2026-01-28",null,"Ma"]
[null,null,null,null,null,null,null,null,null,null,null,null,null,"2026-01-28",null,"slk"]
[null,null,null,null,null,null,null,null,null,null,null,null,null,"2026-01-29",null,"Ma"]
[null,null,null,null,null,null,null,null,null,null,null,null,null,"2026-01-29",null,"slk"]
[null,null,null,null,null,null,null,null,null,null,null,null,null,"2026-01-30",null,"Ma"]
[null,null,null,null,null,null,null,null,null,null,null,null,null,"2026-01-30",null,"slk"]
[null,null,null,null,null,null,null,null,null,null,null,null,null,"2026-01-30",null,"slk"]
[null,null,null,null,null,null,null,null,null,null,null,null,null,"2026-02-02",null,"Ma"]
[null,null,null,null,null,null,null,null,null,null,null,null,null,"2026-02-02",null,"Ma"]
[null,null,null,null,null,null,null,null,null,null,null,null,null,"2026-02-02",null,"Ma"]
[null,null,null,null,null,null,null,null,null,null,null,null,null,"2026-02-02",null,"Ma"]
[null,null,null,null,null,null,null,null,null,null,null,null,null,"2026-02-02",null,"Ma"]
[null,null,null,null,null,null,null,null,null,null,null,null,null,"2026-02-02",null,"Ma"]
[null,null,null,null,null,null,null,null,null,null,null,null,null,"2026-02-03",null,"Ma"]
[null,null,null,null,null,null,null,null,null,null,null,null,null,"2026-02-03",null,"Ma"]
[null,null,null,null,null,null,null,null,null,null,null,null,null,"2026-02-03",null,"Ma"]
[null,null,null,null,null,null,null,null,null,null,null,null,null,"2026-02-03",null,"Ma"]
[null,null,null,null,null,null,null,null,null,null,null,null,null,"2026-02-03",null,"Ma"]
[null,null,null,null,null,null,null,null,null,null,null,null,null,"2026-02-03",null,"slk"]
[null,null,null,null,null,null,null,null,null,null,null,null,null,"2026-02-04",null,"Ma"]
[null,null,null,null,null,null,null,null,null,null,null,null,null,"2026-02-04",null,"Ma"]
[null,null,null,null,null,null,null,null,null,null,null,null,null,"2026-02-04",null,"Ma"]
[null,null,null,null,null,null,null,null,null,null,null,null,null,"2026-02-04",null,"Ma"]
[null,null,null,null,null,null,null,null,null,null,null,null,null,"2026-02-04",null,"Ma"]
[null,null,null,null,null,null,null,null,null,null,null,null,null,"2026-02-04",null,"Ma"]
[null,null,null,null,null,null,null,null,null,null,null,null,null,"2026-02-04",null,"Ma"]
[null,null,null,null,null,null,null,null,null,null,null,null,null,"2026-02-04",null,"Ma"]
[null,null,null,null,null,null,null,null,null,null,null,null,null,"2026-02-04",null,"Ma"]
[null,null,null,null,null,null,null,null,null,null,null,null,null,"2026-02-05",null,"Ma"]
[null,null,null,null,null,null,null,null,null,null,null,null,null,"2026-02-05",null,"Ma"]
[null,null,null,null,null,null,null,null,null,null,null,null,null,"2026-02-06",null,"Ma"]
[null,null,null,null,null,null,null,null,null,null,null,null,null,"2026-02-06",null,"Ma"]
[null,null,null,null,null,null,null,null,null,null,null,null,null,"2026-02-06",null,"Ma"]
[null,null,null,null,null,null,null,null,null,null,null,null,null,"2026-02-06",null,"Ma"]
[null,null,null,null,null,null,null,null,null,null,null,null,null,"2026-02-06",null,"Ma"]
[null,null,null,null,null,null,null,null,null,null,null,null,null,"2026-02-06",null,"Ma"]
[null,null,null,null,null,null,null,null,null,null,null,null,null,"2026-02-06",null,"Ma"]
[null,null,null,null,null,null,null,null,null,null,null,null,null,"2026-02-09",null,"Ma"]
[null,null,null,null,null,null,null,null,null,null,null,null,null,"2026-02-09",null,"Ma"]
[null,null,null,null,null,null,null,null,null,null,null,null,null,"2026-02-09",null,"Ma"]
[null,null,null,null,null,null,null,null,null,null,null,null,null,"2026-02-09",null,"Ma"]
[null,null,null,null,null,null,null,null,null,null,null,null,null,"2026-02-09",null,"slk"]
[null,null,null,null,null,null,null,null,null,null,null,null,null,"2026-02-10",null,"slk"]
[null,null,null,null,null,null,null,null,null,null,null,null,null,"2026-02-10",null,"Ma"]
[null,null,null,null,null,null,null,null,null,null,null,null,null,"2026-02-10",null,"slk"]
[null,null,null,null,null,null,null,null,null,null,null,null,null,"2026-02-10",null,"Ma"]
[null,null,null,null,null,null,null,null,null,null,null,null,null,"2026-02-10",null,"Ma"]
[null,null,null,null,null,null,null,null,null,null,null,null,null,"2026-02-11",null,"Ma"]
[null,null,null,null,null,null,null,null,null,null,null,null,null,"2026-02-11",null,"Ma"]
[null,null,null,null,null,null,null,null,null,null,null,null,null,"2026-02-11",null,"Ma"]
[null,null,null,null,null,null,null,null,null,null,null,null,null,"2026-02-11",null,"Ma"]
[null,null,null,null,null,null,null,null,null,null,null,null,null,"2026-02-11",null,"Ma"]
[null,null,null,null,null,null,null,null,null,null,null,null,null,"2026-02-11",null,"Ma"]
[null,null,null,null,null,null,null,null,null,null,null,null,null,"2026-02-11",null,"Ma"]
[null,null,null,null,null,null,null,null,null,null,null,null,null,"2026-02-11",null,"Ma"]
[null,null,null,null,null,null,null,null,null,null,null,null,null,"2026-02-11",null,"Ma"]
[null,null,null,null,null,null,null,null,null,null,null,null,null,"2026-02-11",null,"Ma"]
[null,null,null,null,null,null,null,null,null,null,null,null,null,"2026-02-11",null,"Ma"]
[null,null,null,null,null,null,null,null,null,null,null,null,null,"2026-02-12",null,"Ma"]
[null,null,null,null,null,null,null,null,null,null,null,null,null,"2026-02-12",null,"Ma"]
[null,null,null,null,null,null,null,null,null,null,null,null,null,"2026-02-12",null,"Ma"]
[null,null,null,null,null,null,null,null,null,null,null,null,null,"2026-02-12",null,"Ma"]
[null,null,null,null,null,null,null,null,null,null,null,null,null,"2026-02-12",null,"Ma"]
[null,null,null,null,null,null,null,null,null,null,null,null,null,"2026-02-12",null,"Ma"]
[null,null,null,null,null,null,null,null,null,null,null,null,null,"2026-02-18",null,"slk"]
[null,null,null,null,null,null,null,null,null,null,null,null,null,"2026-02-18",null,"Ma"]
[null,null,null,null,null,null,null,null,null,null,null,null,null,"2026-02-18",null,"Ma"]
[null,null,null,null,null,null,null,null,null,null,null,null,null,"2026-02-18",null,"Ma"]
[null,null,null,null,null,null,null,null,null,null,null,null,null,"2026-02-18",null,"Ma"]
[null,null,null,null,null,null,null,null,null,null,null,null,null,"2026-02-18",null,"Ma"]
[null,null,null,null,null,null,null,null,null,null,null,null,null,"2026-02-20",null,"Ma"]
[null,null,null,null,null,null,null,null,null,null,null,null,null,"2026-02-20",null,"Ma"]
[null,null,null,null,null,null,null,null,null,null,null,null,null,"2026-02-20",null,"Ma"]
[null,null,null,null,null,null,null,null,null,null,null,null,null,"2026-02-20",null,"Ma"]
[null,null,null,null,null,null,null,null,null,null,null,null,null,"2026-02-23",null,"Ma"]
[null,null,null,null,null,null,null,null,null,null,null,null,null,"2026-02-23",null,"slk"]
[null,null,null,null,null,null,null,null,null,null,null,null,null,"2026-02-23",null,"Ma"]
[null,null,null,null,null,null,null,null,null,null,null,null,null,"2026-02-23",null,"Ma"]
[null,null,null,null,null,null,null,null,null,null,null,null,null,"2026-02-23",null,"Ma"]
[null,null,null,null,null,null,null,null,null,null,null,null,null,"2026-02-23",null,"Ma"]
[null,null,null,null,null,null,null,null,null,null,null,null,null,"2026-02-23",null,"Ma"]
[null,null,null,null,null,null,null,null,null,null,null,null,null,"2026-02-24",null,"Ma"]
[null,null,null,null,null,null,null,null,null,null,null,null,null,"2026-02-24",null,"Ma"]
[null,null,null,null,null,null,null,null,null,null,null,null,null,"2026-02-24",null,"Ma"]
[null,null,null,null,null,null,null,null,null,null,null,null,null,"2026-02-24",null,"Ma"]
[null,null,null,null,null,null,null,null,null,null,null,null,null,"2026-02-24",null,"Ma"]
[null,null,null,null,null,null,null,null,null,null,null,null,null,"2026-02-24",null,"Ma"]
[null,null,null,null,null,null,null,null,null,null,null,null,null,"2026-02-25",null,"slk"]
[null,null,null,null,null,null,null,null,null,null,null,null,null,"2026-02-25",null,"slk"]
[null,null,null,null,null,null,null,null,null,null,null,null,null,"2026-02-25",null,"Ma"]
[null,null,null,null,null,null,null,null,null,null,null,null,null,"2026-02-25",null,"Ma"]
[null,null,null,null,null,null,null,null,null,null,null,null,null,"2026-02-25",null,"Ma"]
[null,null,null,null,null,null,null,null,null,null,null,null,null,"2026-02-26",null,"Ma"]
[null,null,null,null,null,null,null,null,null,null,null,null,null,"2026-02-26",null,"Ma"]
[null,null,null,null,null,null,null,null,null,null,null,null,null,"2026-02-26",null,"Ma"]
[null,null,null,null,null,null,null,null,null,null,null,null,null,"2026-02-27",null,"Ma"]
[null,null,null,null,null,null,null,null,null,null,null,null,null,"2026-02-27",null,"Ma"]
[null,null,null,null,null,null,null,null,null,null,null,null,null,"2026-02-27",null,"Ma"]
[null,null,null,null,null,null,null,null,null,null,null,null,null,"2026-02-27",null,"Ma"]
[null,null,null,null,null,null,null,null,null,null,null,null,null,"2026-02-27",null,"Ma"]
[null,null,null,null,null,null,null,null,null,null,null,null,null,"2026-02-27",null,"Ma"]
[null,null,null,null,null,null,null,null,null,null,null,null,null,"2026-02-27",null,"Ma"]
[null,null,null,null,null,null,null,null,null,null,null,null,null,"2026-03-02",null,"slk"]
[null,null,null,null,null,null,null,null,null,null,null,null,null,"2026-03-02",null,"Ma"]
[null,null,null,null,null,null,null,null,null,null,null,null,null,"2026-03-02",null,"Ma"]
[null,null,null,null,null,null,null,null,null,null,null,null,null,"2026-03-03",null,"Ma"]
[null,null,null,null,null,null,null,null,null,null,null,null,null,"2026-03-03",null,"Ma"]
[null,null,null,null,null,null,null,null,null,null,null,null,null,"2026-03-03",null,"Ma"]
[null,null,null,null,null,null,null,null,null,null,null,null,null,"2026-03-03",null,"Ma"]
[null,null,null,null,null,null,null,null,null,null,null,null,null,"2026-03-03",null,"Ma"]
[null,null,null,null,null,null,null,null,null,null,null,null,null,"2026-03-03",null,"Ma"]
[null,null,null,null,null,null,null,null,null,null,null,null,null,"2026-03-03",null,"Ma"]
[null,null,null,null,null,null,null,null,null,null,null,null,null,"2026-03-03",null,"Ma"]
[null,null,null,null,null,null,null,null,null,null,null,null,null,"2026-03-03",null,"Ma"]
[null,null,null,null,null,null,null,null,null,null,null,null,null,"2026-03-04",null,"Ma"]
[null,null,null,null,null,null,null,null,null,null,null,null,null,"2026-03-04",null,"Ma"]
[null,null,null,null,null,null,null,null,null,null,null,null,null,"2026-03-04",null,"Ma"]
[null,null,null,null,null,null,null,null,null,null,null,null,null,"2026-03-05",null,"slk"]
[null,null,null,null,null,null,null,null,null,null,null,null,null,"2026-03-06",null,"Ma"]
[null,null,null,null,null,null,null,null,null,null,null,null,null,"2026-03-06",null,"Ma"]
[null,null,null,null,null,null,null,null,null,null,null,null,null,"2026-03-06",null,"Ma"]
[null,null,null,null,null,null,null,null,null,null,null,null,null,"2026-03-06",null,"Ma"]
[null,null,null,null,null,null,null,null,null,null,null,null,null,"2026-03-06",null,"Ma"]
[null,null,null,null,null,null,null,null,null,null,null,null,null,"2026-03-06",null,"Ma"]
[null,null,null,null,null,null,null,null,null,null,null,null,null,"2026-03-06",null,"Ma"]
[null,null,null,null,null,null,null,null,null,null,null,null,null,"2026-03-09",null,"Ma"]
[null,null,null,null,null,null,null,null,null,null,null,null,null,"2026-03-09",null,"Ma"]
[null,null,null,null,null,null,null,null,null,null,null,null,null,"2026-03-09",null,"Ma"]
[null,null,null,null,null,null,null,null,null,null,null,null,null,"2026-03-09",null,"Ma"]
[null,null,null,null,null,null,null,null,null,null,null,null,null,"2026-03-09",null,"slk"]
[null,null,null,null,null,null,null,null,null,null,null,null,null,"2026-03-09",null,"Ma"]
[null,null,null,null,null,null,null,null,null,null,null,null,null,"2026-03-09",null,"Ma"]
[null,null,null,null,null,null,null,null,null,null,null,null,null,"2026-03-10",null,"Ma"]
[null,null,null,null,null,null,null,null,null,null,null,null,null,"2026-03-10",null,"Ma"]
[null,null,null,null,null,null,null,null,null,null,null,null,null,"2026-03-10",null,"Ma"]
[null,null,null,null,null,null,null,null,null,null,null,null,null,"2026-03-10",null,"Ma"]
[null,null,null,null,null,null,null,null,null,null,null,null,null,"2026-03-10",null,"Ma"]
[null,null,null,null,null,null,null,null,null,null,null,null,null,"2026-03-10",null,"Ma"]
[null,null,null,null,null,null,null,null,null,null,null,null,null,"2026-03-10",null,"Ma"]
[null,null,null,null,null,null,null,null,null,null,null,null,null,"2026-03-10",null,"Ma"]
[null,null,null,null,null,null,null,null,null,null,null,null,null,"2026-03-10",null,"Ma"]
[null,null,null,null,null,null,null,null,null,null,null,null,null,"2026-03-11",null,"Ma"]
[null,null,null,null,null,null,null,null,null,null,null,null,null,"2026-03-11",null,"Ma"]
[null,null,null,null,null,null,null,null,null,null,null,null,null,"2026-03-11",null,"Ma"]
[null,null,null,null,null,null,null,null,null,null,null,null,null,"2026-03-12",null,"Ma"]
[null,null,null,null,null,null,null,null,null,null,null,null,null,"2026-03-13",null,"Ma"]
[null,null,null,null,null,null,null,null,null,null,null,null,null,"2026-03-13",null,"Ma"]
[null,null,null,null,null,null,null,null,null,null,null,null,null,"2026-03-13",null,"Ma"]
[null,null,null,null,null,null,null,null,null,null,null,null,null,"2026-03-13",null,"Ma"]
[null,null,null,null,null,null,null,null,null,null,null,null,null,"2026-03-13",null,"Ma"]
[null,null,null,null,null,null,null,null,null,null,null,null,null,"2026-03-13",null,"Ma"]
[null,null,null,null,null,null,null,null,null,null,null,null,null,"2026-03-13",null,"Ma"]
[null,null,null,null,null,null,null,null,null,null,null,null,null,"2026-03-13",null,"Ma"]
[null,null,null,null,null,null,null,null,null,null,null,null,null,"2026-03-13",null,"Ma"]
[null,null,null,null,null,null,null,null,null,null,null,null,null,"2026-03-13",null,"Ma"]
[null,null,null,null,null,null,null,null,null,null,null,null,null,"2026-03-13",null,"Ma"]
[null,null,null,null,null,null,null,null,null,null,null,null,null,"2026-03-13",null,"Ma"]
[null,null,null,null,null,null,null,null,null,null,null,null,null,"2026-03-16",null,"Ma"]
[null,null,null,null,null,null,null,null,null,null,null,null,null,"2026-03-16",null,"slk"]
[null,null,null,null,null,null,null,null,null,null,null,null,null,"2026-03-16",null,"slk"]
[null,null,null,null,null,null,null,null,null,null,null,null,null,"2026-03-16",null,"slk"]
[null,null,null,null,null,null,null,null,null,null,null,null,null,"2026-03-16",null,"slk"]
[null,null,null,null,null,null,null,null,null,null,null,null,null,"2026-03-16",null,"Ma"]
[null,null,null,null,null,null,null,null,null,null,null,null,null,"2026-03-16",null,"Ma"]
[null,null,null,null,null,null,null,null,null,null,null,null,null,"2026-03-16",null,"Ma"]
[null,null,null,null,null,null,null,null,null,null,null,null,null,"2026-03-16",null,"Ma"]
[null,null,null,null,null,null,null,null,null,null,null,null,null,"2026-03-17",null,"Ma"]
[null,null,null,null,null,null,null,null,null,null,null,null,null,"2026-03-17",null,"Ma"]
[null,null,null,null,null,null,null,null,null,null,null,null,null,"2026-03-17",null,"Ma"]
[null,null,null,null,null,null,null,null,null,null,null,null,null,"2026-03-17",null,"Ma"]
[null,null,null,null,null,null,null,null,null,null,null,null,null,"2026-03-17",null,"Ma"]
[null,null,null,null,null,null,null,null,null,null,null,null,null,"2026-03-17",null,"Ma"]
[null,null,null,null,null,null,null,null,null,null,null,null,null,"2026-03-17",null,"Ma"]
[null,null,null,null,null,null,null,null,null,null,null,null,null,"2026-03-17",null,"Ma"]
[null,null,null,null,null,null,null,null,null,null,null,null,null,"2026-03-17",null,"Ma"]
[null,null,null,null,null,null,null,null,null,null,null,null,null,"2026-03-17",null,"Ma"]
[null,null,null,null,null,null,null,null,null,null,null,null,null,"2026-03-17",null,"Ma"]
[null,null,null,null,null,null,null,null,null,null,null,null,null,"2026-03-17",null,"Ma"]
[null,null,null,null,null,null,null,null,null,null,null,null,null,"2026-03-17",null,"Ma"]
[null,null,null,null,null,null,null,null,null,null,null,null,null,"2026-03-17",null,"Ma"]
[null,null,null,null,null,null,null,null,null,null,null,null,null,"2026-03-18",null,"Ma"]
[null,null,null,null,null,null,null,null,null,null,null,null,null,"2026-03-18",null,"Ma"]
[null,null,null,null,null,null,null,null,null,null,null,null,null,"2026-03-18",null,"Ma"]
[null,null,null,null,null,null,null,null,null,null,null,null,null,"2026-03-18",null,"Ma"]
[null,null,null,null,null,null,null,null,null,null,null,null,null,"2026-03-18",null,"Ma"]
[null,null,null,null,null,null,null,null,null,null,null,null,null,"2026-03-18",null,"Ma"]
[null,null,null,null,null,null,null,null,null,null,null,null,null,"2026-03-18",null,"Ma"]
[null,null,null,null,null,null,null,null,null,null,null,null,null,"2026-03-18",null,"Ma"]
[null,null,null,null,null,null,null,null,null,null,null,null,null,"2026-03-18",null,"Ma"]
[null,null,null,null,null,null,null,null,null,null,null,null,null,"2026-03-18",null,"Ma"]
[null,null,null,null,null,null,null,null,null,null,null,null,null,"2026-03-18",null,"Ma"]
[null,null,null,null,null,null,null,null,null,null,null,null,null,"2026-03-18",null,"Ma"]
[null,null,null,null,null,null,null,null,null,null,null,null,null,"2026-03-18",null,"Ma"]
[null,null,null,null,null,null,null,null,null,null,null,null,null,"2026-03-18",null,"Ma"]
[null,null,null,null,null,null,null,null,null,null,null,null,null,"2026-03-18",null,"Ma"]
[null,null,null,null,null,null,null,null,null,null,null,null,null,"2026-03-18",null,"Ma"]
[null,null,null,null,null,null,null,null,null,null,null,null,null,"2026-03-19",null,"Ma"]
[null,null,null,null,null,null,null,null,null,null,null,null,null,"2026-03-19",null,"Ma"]
[null,null,null,null,null,null,null,null,null,null,null,null,null,"2026-03-20",null,"Ma"]
[null,null,null,null,null,null,null,null,null,null,null,null,null,"2026-03-20",null,"Ma"]
[null,null,null,null,null,null,null,null,null,null,null,null,null,"2026-03-20",null,"Ma"]

{"sheet":"Rg_Eingang_Tag","index":1,"n_rows":51,"n_cols":60,"rows_kept":51,"cut":false,"hidden":false,"merged":[[1,5,1,6]]}
[]
[null,null,null,null,null,2026]
[null,null,"Ma","Slk","Pak",null,null,"Ma","Slk","Pak",null,null,"Ma","Slk","Pak",null,null,"Ma","Slk","Pak",null,null,"Ma","Slk","Pak",null,null,"Ma","Slk","Pak",null,null,"Ma","Slk","Pak",null,null,"Ma","Slk","Pak",null,null,"Ma","Slk","Pak",null,null,"Ma","Slk","Pak",null,null,"Ma","Slk","Pak",null,null,"Ma","Slk","Pak"]
[{"$f":"TEXT(DATE($F$2,1+INT((COLUMN()-1)/3),1)+ROW(A1)-1,\"TTT\")","v":"Do"},{"$f":"TEXT(DATE($F$2,1+INT((COLUMN()-1)/3),1)+ROW(A1)-1,\"TT.MM.\")","v":"01.01."},null,null,null,{"$f":"TEXT(DATE($F$2,2,1)+ROW(A1)-1,\"TTT\")","v":"So"},{"$f":"TEXT(DATE($F$2,2,1)+ROW(A1)-1,\"TT.MM.\")","v":"01.02."},null,null,null,{"$f":"TEXT(DATE($F$2,3,1)+ROW(A1)-1,\"TTT\")","v":"So"},{"$f":"TEXT(DATE($F$2,3,1)+ROW(A1)-1,\"TT.MM.\")","v":"01.03."},null,null,null,{"$f":"TEXT(DATE($F$2,4,1)+ROW(A1)-1,\"TTT\")","v":"Mi"},{"$f":"TEXT(DATE($F$2,4,1)+ROW(A1)-1,\"TT.MM.\")","v":"01.04."},null,null,null,{"$f":"TEXT(DATE($F$2,5,1)+ROW(A1)-1,\"TTT\")","v":"Fr"},{"$f":"TEXT(DATE($F$2,5,1)+ROW(A1)-1,\"TT.MM.\")","v":"01.05."},null,null,null,{"$f":"TEXT(DATE($F$2,6,1)+ROW(A1)-1,\"TTT\")","v":"Mo"},{"$f":"TEXT(DATE($F$2,6,1)+ROW(A1)-1,\"TT.MM.\")","v":"01.06."},null,null,null,{"$f":"TEXT(DATE($F$2,7,1)+ROW(A1)-1,\"TTT\")","v":"Mi"},{"$f":"TEXT(DATE($F$2,7,1)+ROW(A1)-1,\"TT.MM.\")","v":"01.07."},null,null,null,{"$f":"TEXT(DATE($F$2,8,1)+ROW(A1)-1,\"TTT\")","v":"Sa"},{"$f":"TEXT(DATE($F$2,8,1)+ROW(A1)-1,\"TT.MM.\")","v":"01.08."},null,null,null,{"$f":"TEXT(DATE($F$2,9,1)+ROW(A1)-1,\"TTT\")","v":"Di"},{"$f":"TEXT(DATE($F$2,9,1)+ROW(A1)-1,\"TT.MM.\")","v":"01.09."},null,null,null,{"$f":"TEXT(DATE($F$2,10,1)+ROW(A1)-1,\"TTT\")","v":"Do"},{"$f":"TEXT(DATE($F$2,10,1)+ROW(A1)-1,\"TT.MM.\")","v":"01.10."},null,null,null,{"$f":"TEXT(DATE($F$2,11,1)+ROW(A1)-1,\"TTT\")","v":"So"},{"$f":"TEXT(DATE($F$2,11,1)+ROW(A1)-1,\"TT.MM.\")","v":"01.11."},null,null,null,{"$f":"TEXT(DATE($F$2,12,1)+ROW(A1)-1,\"TTT\")","v":"Di"},{"$f":"TEXT(DATE($F$2,12,1)+ROW(A1)-1,\"TT.MM.\")","v":"01.12."}]
[{"$f":"TEXT(DATE($F$2,1+INT((COLUMN()-1)/3),1)+ROW(A2)-1,\"TTT\")","v":"Fr"},{"$f":"TEXT(DATE($F$2,1+INT((COLUMN()-1)/3),1)+ROW(A2)-1,\"TT.MM.\")","v":"02.01."},null,null,null,{"$f":"TEXT(DATE($F$2,2,1)+ROW(A2)-1,\"TTT\")","v":"Mo"},{"$f":"TEXT(DATE($F$2,2,1)+ROW(A2)-1,\"TT.MM.\")","v":"02.02."},null,null,null,{"$f":"TEXT(DATE($F$2,3,1)+ROW(A2)-1,\"TTT\")","v":"Mo"},{"$f":"TEXT(DATE($F$2,3,1)+ROW(A2)-1,\"TT.MM.\")","v":"02.03."},null,null,null,{"$f":"TEXT(DATE($F$2,4,1)+ROW(A2)-1,\"TTT\")","v":"Do"},{"$f":"TEXT(DATE($F$2,4,1)+ROW(A2)-1,\"TT.MM.\")","v":"02.04."},null,null,null,{"$f":"TEXT(DATE($F$2,5,1)+ROW(A2)-1,\"TTT\")","v":"Sa"},{"$f":"TEXT(DATE($F$2,5,1)+ROW(A2)-1,\"TT.MM.\")","v":"02.05."},null,null,null,{"$f":"TEXT(DATE($F$2,6,1)+ROW(A2)-1,\"TTT\")","v":"Di"},{"$f":"TEXT(DATE($F$2,6,1)+ROW(A2)-1,\"TT.MM.\")","v":"02.06."},null,null,null,{"$f":"TEXT(DATE($F$2,7,1)+ROW(A2)-1,\"TTT\")","v":"Do"},{"$f":"TEXT(DATE($F$2,7,1)+ROW(A2)-1,\"TT.MM.\")","v":"02.07."},null,null,null,{"$f":"TEXT(DATE($F$2,8,1)+ROW(A2)-1,\"TTT\")","v":"So"},{"$f":"TEXT(DATE($F$2,8,1)+ROW(A2)-1,\"TT.MM.\")","v":"02.08."},null,null,null,{"$f":"TEXT(DATE($F$2,9,1)+ROW(A2)-1,\"TTT\")","v":"Mi"},{"$f":"TEXT(DATE($F$2,9,1)+ROW(A2)-1,\"TT.MM.\")","v":"02.09."},null,null,null,{"$f":"TEXT(DATE($F$2,10,1)+ROW(A2)-1,\"TTT\")","v":"Fr"},{"$f":"TEXT(DATE($F$2,10,1)+ROW(A2)-1,\"TT.MM.\")","v":"02.10."},null,null,null,{"$f":"TEXT(DATE($F$2,11,1)+ROW(A2)-1,\"TTT\")","v":"Mo"},{"$f":"TEXT(DATE($F$2,11,1)+ROW(A2)-1,\"TT.MM.\")","v":"02.11."},null,null,null,{"$f":"TEXT(DATE($F$2,12,1)+ROW(A2)-1,\"TTT\")","v":"Mi"},{"$f":"TEXT(DATE($F$2,12,1)+ROW(A2)-1,\"TT.MM.\")","v":"02.12."}]
["Sa","03.01.",null,null,null,"Di","03.02.",null,null,null,"Di","03.03.",null,null,null,"Fr","03.04.",null,null,null,"So","03.05.",null,null,null,"Mi","03.06.",null,null,null,"Fr","03.07.",null,null,null,"Mo","03.08.",null,null,null,"Do","03.09.",null,null,null,"Sa","03.10.",null,null,null,"Di","03.11.",null,null,null,"Do","03.12."]
["So","04.01.",null,null,null,"Mi","04.02.",null,null,null,"Mi","04.03.",null,null,null,"Sa","04.04.",null,null,null,"Mo","04.05.",null,null,null,"Do","04.06.",null,null,null,"Sa","04.07.",null,null,null,"Di","04.08.",null,null,null,"Fr","04.09.",null,null,null,"So","04.10.",null,null,null,"Mi","04.11.",null,null,null,"Fr","04.12."]
["Mo","05.01.",null,null,null,"Do","05.02.",null,null,null,"Do","05.03.",null,null,null,"So","05.04.",null,null,null,"Di","05.05.",null,null,null,"Fr","05.06.",null,null,null,"So","05.07.",null,null,null,"Mi","05.08.",null,null,null,"Sa","05.09.",null,null,null,"Mo","05.10.",null,null,null,"Do","05.11.",null,null,null,"Sa","05.12."]
["Di","06.01.",null,null,null,"Fr","06.02.",null,null,null,"Fr","06.03.",null,null,null,"Mo","06.04.",null,null,null,"Mi","06.05.",null,null,null,"Sa","06.06.",null,null,null,"Mo","06.07.",null,null,null,"Do","06.08.",null,null,null,"So","06.09.",null,null,null,"Di","06.10.",null,null,null,"Fr","06.11.",null,null,null,"So","06.12."]
["Mi","07.01.",null,null,null,"Sa","07.02.",null,null,null,"Sa","07.03.",null,null,null,"Di","07.04.",null,null,null,"Do","07.05.",null,null,null,"So","07.06.",null,null,null,"Di","07.07.",null,null,null,"Fr","07.08.",null,null,null,"Mo","07.09.",null,null,null,"Mi","07.10.",null,null,null,"Sa","07.11.",null,null,null,"Mo","07.12."]
["Do","08.01.",null,null,null,"So","08.02.",null,null,null,"So","08.03.",null,null,null,"Mi","08.04.",null,null,null,"Fr","08.05.",null,null,null,"Mo","08.06.",null,null,null,"Mi","08.07.",null,null,null,"Sa","08.08.",null,null,null,"Di","08.09.",null,null,null,"Do","08.10.",null,null,null,"So","08.11.",null,null,null,"Di","08.12."]
["Fr","09.01.",null,null,null,"Mo","09.02.",null,null,null,"Mo","09.03.",null,null,null,"Do","09.04.",null,null,null,"Sa","09.05.",null,null,null,"Di","09.06.",null,null,null,"Do","09.07.",null,null,null,"So","09.08.",null,null,null,"Mi","09.09.",null,null,null,"Fr","09.10.",null,null,null,"Mo","09.11.",null,null,null,"Mi","09.12."]
["Sa","10.01.",null,null,null,"Di","10.02.",null,null,null,"Di","10.03.",null,null,null,"Fr","10.04.",null,null,null,"So","10.05.",null,null,null,"Mi","10.06.",null,null,null,"Fr","10.07.",null,null,null,"Mo","10.08.",null,null,null,"Do","10.09.",null,null,null,"Sa","10.10.",null,null,null,"Di","10.11.",null,null,null,"Do","10.12."]
["So","11.01.",null,null,null,"Mi","11.02.",null,null,null,"Mi","11.03.",null,null,null,"Sa","11.04.",null,null,null,"Mo","11.05.",null,null,null,"Do","11.06.",null,null,null,"Sa","11.07.",null,null,null,"Di","11.08.",null,null,null,"Fr","11.09.",null,null,null,"So","11.10.",null,null,null,"Mi","11.11.",null,null,null,"Fr","11.12."]
["Mo","12.01.",null,null,null,"Do","12.02.",null,null,null,"Do","12.03.",null,null,null,"So","12.04.",null,null,null,"Di","12.05.",null,null,null,"Fr","12.06.",null,null,null,"So","12.07.",null,null,null,"Mi","12.08.",null,null,null,"Sa","12.09.",null,null,null,"Mo","12.10.",null,null,null,"Do","12.11.",null,null,null,"Sa","12.12."]
["Di","13.01.",null,null,null,"Fr","13.02.",null,null,null,"Fr","13.03.",null,null,null,"Mo","13.04.",null,null,null,"Mi","13.05.",null,null,null,"Sa","13.06.",null,null,null,"Mo","13.07.",null,null,null,"Do","13.08.",null,null,null,"So","13.09.",null,null,null,"Di","13.10.",null,null,null,"Fr","13.11.",null,null,null,"So","13.12."]
["Mi","14.01.",null,null,null,"Sa","14.02.",null,null,null,"Sa","14.03.",null,null,null,"Di","14.04.",null,null,null,"Do","14.05.",null,null,null,"So","14.06.",null,null,null,"Di","14.07.",null,null,null,"Fr","14.08.",null,null,null,"Mo","14.09.",null,null,null,"Mi","14.10.",null,null,null,"Sa","14.11.",null,null,null,"Mo","14.12."]
["Do","15.01.",null,null,null,"So","15.02.",null,null,null,"So","15.03.",null,null,null,"Mi","15.04.",null,null,null,"Fr","15.05.",null,null,null,"Mo","15.06.",null,null,null,"Mi","15.07.",null,null,null,"Sa","15.08.",null,null,null,"Di","15.09.",null,null,null,"Do","15.10.",null,null,null,"So","15.11.",null,null,null,"Di","15.12."]
["Fr","16.01.",null,null,null,"Mo","16.02.",null,null,null,"Mo","16.03.",null,null,null,"Do","16.04.",null,null,null,"Sa","16.05.",null,null,null,"Di","16.06.",null,null,null,"Do","16.07.",null,null,null,"So","16.08.",null,null,null,"Mi","16.09.",null,null,null,"Fr","16.10.",null,null,null,"Mo","16.11.",null,null,null,"Mi","16.12."]
["Sa","17.01.",null,null,null,"Di","17.02.",null,null,null,"Di","17.03.",null,null,null,"Fr","17.04.",null,null,null,"So","17.05.",null,null,null,"Mi","17.06.",null,null,null,"Fr","17.07.",null,null,null,"Mo","17.08.",null,null,null,"Do","17.09.",null,null,null,"Sa","17.10.",null,null,null,"Di","17.11.",null,null,null,"Do","17.12."]
["So","18.01.",null,null,null,"Mi","18.02.",null,null,null,"Mi","18.03.",null,null,null,"Sa","18.04.",null,null,null,"Mo","18.05.",null,null,null,"Do","18.06.",null,null,null,"Sa","18.07.",null,null,null,"Di","18.08.",null,null,null,"Fr","18.09.",null,null,null,"So","18.10.",null,null,null,"Mi","18.11.",null,null,null,"Fr","18.12."]
["Mo","19.01.",null,null,null,"Do","19.02.",null,null,null,"Do","19.03.",null,null,null,"So","19.04.",null,null,null,"Di","19.05.",null,null,null,"Fr","19.06.",null,null,null,"So","19.07.",null,null,null,"Mi","19.08.",null,null,null,"Sa","19.09.",null,null,null,"Mo","19.10.",null,null,null,"Do","19.11.",null,null,null,"Sa","19.12."]
["Di","20.01.",null,null,null,"Fr","20.02.",null,null,null,"Fr","20.03.",null,null,null,"Mo","20.04.",null,null,null,"Mi","20.05.",null,null,null,"Sa","20.06.",null,null,null,"Mo","20.07.",null,null,null,"Do","20.08.",null,null,null,"So","20.09.",null,null,null,"Di","20.10.",null,null,null,"Fr","20.11.",null,null,null,"So","20.12."]
["Mi","21.01.",null,null,null,"Sa","21.02.",null,null,null,"Sa","21.03.",null,null,null,"Di","21.04.",null,null,null,"Do","21.05.",null,null,null,"So","21.06.",null,null,null,"Di","21.07.",null,null,null,"Fr","21.08.",null,null,null,"Mo","21.09.",null,null,null,"Mi","21.10.",null,null,null,"Sa","21.11.",null,null,null,"Mo","21.12."]
["Do","22.01.",null,null,null,"So","22.02.",null,null,null,"So","22.03.",null,null,null,"Mi","22.04.",null,null,null,"Fr","22.05.",null,null,null,"Mo","22.06.",null,null,null,"Mi","22.07.",null,null,null,"Sa","22.08.",null,null,null,"Di","22.09.",null,null,null,"Do","22.10.",null,null,null,"So","22.11.",null,null,null,"Di","22.12."]
["Fr","23.01.",null,null,null,"Mo","23.02.",null,null,null,"Mo","23.03.",null,null,null,"Do","23.04.",null,null,null,"Sa","23.05.",null,null,null,"Di","23.06.",null,null,null,"Do","23.07.",null,null,null,"So","23.08.",null,null,null,"Mi","23.09.",null,null,null,"Fr","23.10.",null,null,null,"Mo","23.11.",null,null,null,"Mi","23.12."]
["Sa","24.01.",null,null,null,"Di","24.02.",null,null,null,"Di","24.03.",null,null,null,"Fr","24.04.",null,null,null,"So","24.05.",null,null,null,"Mi","24.06.",null,null,null,"Fr","24.07.",null,null,null,"Mo","24.08.",null,null,null,"Do","24.09.",null,null,null,"Sa","24.10.",null,null,null,"Di","24.11.",null,null,null,"Do","24.12."]
["So","25.01.",null,null,null,"Mi","25.02.",null,null,null,"Mi","25.03.",null,null,null,"Sa","25.04.",null,null,null,"Mo","25.05.",null,null,null,"Do","25.06.",null,null,null,"Sa","25.07.",null,null,null,"Di","25.08.",null,null,null,"Fr","25.09.",null,null,null,"So","25.10.",null,null,null,"Mi","25.11.",null,null,null,"Fr","25.12."]
["Mo","26.01.",null,null,null,"Do","26.02.",null,null,null,"Do","26.03.",null,null,null,"So","26.04.",null,null,null,"Di","26.05.",null,null,null,"Fr","26.06.",null,null,null,"So","26.07.",null,null,null,"Mi","26.08.",null,null,null,"Sa","26.09.",null,null,null,"Mo","26.10.",null,null,null,"Do","26.11.",null,null,null,"Sa","26.12."]
["Di","27.01.",null,null,null,"Fr","27.02.",null,null,null,"Fr","27.03.",null,null,null,"Mo","27.04.",null,null,null,"Mi","27.05.",null,null,null,"Sa","27.06.",null,null,null,"Mo","27.07.",null,null,null,"Do","27.08.",null,null,null,"So","27.09.",null,null,null,"Di","27.10.",null,null,null,"Fr","27.11.",null,null,null,"So","27.12."]
["Mi","28.01.",null,null,null,"Sa","28.02.",null,null,null,"Sa","28.03.",null,null,null,"Di","28.04.",null,null,null,"Do","28.05.",null,null,null,"So","28.06.",null,null,null,"Di","28.07.",null,null,null,"Fr","28.08.",null,null,null,"Mo","28.09.",null,null,null,"Mi","28.10.",null,null,null,"Sa","28.11.",null,null,null,"Mo","28.12."]
["Do","29.01.",null,null,null,"So","01.03.",null,null,null,"So","29.03.",null,null,null,"Mi","29.04.",null,null,null,"Fr","29.05.",null,null,null,"Mo","29.06.",null,null,null,"Mi","29.07.",null,null,null,"Sa","29.08.",null,null,null,"Di","29.09.",null,null,null,"Do","29.10.",null,null,null,"So","29.11.",null,null,null,"Di","29.12."]
["Fr","30.01.",null,null,null,"Mo","02.03.",null,null,null,"Mo","30.03.",null,null,null,"Do","30.04.",null,null,null,"Sa","30.05.",null,null,null,"Di","30.06.",null,null,null,"Do","30.07.",null,null,null,"So","30.08.",null,null,null,"Mi","30.09.",null,null,null,"Fr","30.10.",null,null,null,"Mo","30.11.",null,null,null,"Mi","30.12."]
["Sa","31.01.",null,null,null,"Di","03.03.",null,null,null,"Di","31.03.",null,null,null,"Fr","01.05.",null,null,null,"So","31.05.",null,null,null,"Mi","01.07.",null,null,null,"Fr","31.07.",null,null,null,"Mo","31.08.",null,null,null,"Do","01.10.",null,null,null,"Sa","31.10.",null,null,null,"Di","01.12.",null,null,null,"Do","31.12."]
[null,null,{"$f":"IF(SUM(C8:C34)=0,\"\",SUM(C8:C34))","v":""},{"$f":"IF(SUM(D8:D34)=0,\"\",SUM(D8:D34))","v":""},{"$f":"IF(SUM(E8:E34)=0,\"\",SUM(E8:E34))","v":""},null,null,{"$f":"IF(SUM(H8:H34)=0,\"\",SUM(H8:H34))","v":""},"","",null,null,"","","",null,null,"","","",null,null,"","","",null,null,"","","",null,null,"","","",null,null,"","","",null,null,"","","",null,null,"","","",null,null,"","","",null,null,"","",""]
[]
["Gesamt pro Monat /Jahr:"]
[null,null,"Ma","Pak","Slk",null,null,null,"starte zuerst mein Makro und beachte dann die Hinweise für die unterschiedlichen Farben"]
["Januar",null,{"$f":"+C35","v":""},{"$f":"+D35","v":""},{"$f":"+E35","v":""},{"$f":"SUM(C39:E39)","v":0},null,null,null,"=","ALLE Zahlen für Ma,Slk,Pak ergeben als Summe = 333"]
["Februar",null,{"$f":"+H35","v":""},{"$f":"+I35","v":""},{"$f":"+J35","v":""},{"$f":"SUM(C40:E40)","v":0},null,null,null,"=","deine Formeln in Zeile 35 beginnen alle erst ab Zeile 8 = somit fehlen hier alle Werte aus den Zeilen 5 bis 7"]
["März",null,{"$f":"+M35","v":""},{"$f":"+N35","v":""},{"$f":"+O35","v":""},0,null,null,null,"=","HIER dürfen keine Werte stehen, weil ja Februar nur max 29 Tage hat;und wenn du genau hinguckst, werden ja genau diese Werte in den Spalten M+N für Monat März wiederholt"]
["April",null,null,null,null,0]
["Mai",null,null,null,null,0]
["Juni",null,null,null,null,0]
["Juli",null,null,null,null,0]
["August",null,null,null,null,0]
["September",null,null,null,null,0]
["Oktober",null,null,null,null,0]
["November",null,null,null,null,0]
["Dezember",null,null,null,null,0]
[null,"Gesamt:",{"$f":"SUM(C39:C50)","v":0},{"$f":"SUM(D39:D50)","v":0},0,0]